fUSD/lending_fUSD_20240318
["ID","MTS","AMOUNT","RATE_DAILY","PERIOD"]
[319416019,1710724258688,-2654.61,0.0001863,2]
[319416020,1710724258698,-751.44,0.0001863,2]
[319416021,1710724258707,-2654.61,0.0001863,2]
[319416022,1710724258716,-751.44,0.0001863,2]
[319416023,1710724258725,-751.44,0.0001863,2]
[319416024,1710724258734,-2654.61,0.0001863,2]
[319416025,1710724258743,-751.44,0.0001863,2]
[319416026,1710724258752,-2654.61,0.0001863,2]
[319416027,1710724258760,-751.44,0.0001863,2]
[319416028,1710724258769,-2654.61,0.0001863,2]
[319416029,1710724258778,-751.44,0.0001863,2]
[319416030,1710724258787,-2654.61,0.0001863,2]
[319416031,1710724258796,-751.61536155,0.0001863,2]
[319416032,1710724258805,-2654.61,0.0001863,2]
[319416033,1710724258814,-2654.61,0.0001863,2]
[319416034,1710724258823,-2654.61,0.0001863,2]
[319416035,1710724258832,-2654.61,0.0001863,2]
[319416036,1710724258841,-2654.61,0.0001863,2]
[319416037,1710724258850,-2654.61,0.0001863,2]
[319416038,1710724258860,-2654.61,0.0001863,2]
[319416039,1710724258869,-2654.61,0.0001863,2]
[319416040,1710724258878,-500.0,0.0001863,2]
[319416041,1710724258887,-2654.61,0.0001863,2]
[319416042,1710724258896,-500.0,0.0001863,2]
[319416043,1710724258905,-2654.61,0.0001863,2]
[319416044,1710724258914,-500.0,0.0001863,2]
[319416045,1710724258923,-202.80663173,0.0001863,2]
[319416046,1710724258932,-500.0,0.0001863,2]
[319416047,1710724258941,-2654.61,0.0001863,2]
[319416048,1710724258950,-500.0,0.0001863,2]
[319416049,1710724258959,-2654.61023279,0.0001863,2]
[319416050,1710724258968,-500.0,0.0001863,2]
[319416051,1710724258976,-500.0,0.0001863,2]
[319416052,1710724258985,-500.0,0.0001863,2]
[319416053,1710724258994,-500.0,0.0001863,2]
[319416054,1710724259003,-500.0,0.0001863,2]
[319416055,1710724259011,-461.26,0.0001863,2]
[319416056,1710724259020,-500.0,0.0001863,2]
[319416057,1710724259029,-500.0,0.0001863,2]
[319416058,1710724259038,-500.0,0.0001863,2]
[319416059,1710724259048,-500.0,0.0001863,2]
[319416060,1710724259056,-500.0,0.0001863,2]
[319416061,1710724259065,-500.0,0.0001863,2]
[319416062,1710724259074,-500.0,0.0001863,2]
[319416063,1710724259083,-500.0,0.0001863,2]
[319416064,1710724259092,-500.0,0.0001863,2]
[319416065,1710724259101,-500.0,0.0001863,2]
[319416066,1710724259111,-500.0,0.0001863,2]
[319416067,1710724259120,-500.0,0.0001863,2]
[319416068,1710724259129,-196.55,0.0001863,2]
[319416069,1710724259139,-500.0,0.0001863,2]
[319416070,1710724259148,-717.51,0.0001863,2]
[319416071,1710724259157,-500.0,0.0001863,2]
[319416072,1710724259165,-717.51,0.0001863,2]
[319416073,1710724259174,-717.51,0.0001863,2]
[319416074,1710724259184,-500.0,0.0001863,2]
[319416075,1710724259193,-717.51,0.0001863,2]
[319416076,1710724259204,-717.51,0.0001863,2]
[319416077,1710724259214,-500.0,0.0001863,2]
[319416078,1710724259223,-500.0,0.0001863,2]
[319416079,1710724259233,-717.51,0.0001863,2]
[319416080,1710724259242,-620.74643762,0.0001863,2]
[319416081,1710724259259,-717.51,0.0001863,2]
[319416082,1710724259268,-717.51,0.0001863,2]
[319416083,1710724259277,-717.51,0.0001863,2]
[319416084,1710724259288,-717.51,0.0001863,2]
[319416085,1710724259297,-717.51,0.0001863,2]
[319416086,1710724259306,-717.51,0.0001863,2]
[319416087,1710724259315,-717.51,0.0001863,2]
[319416088,1710724259324,-7470.57,0.0001863,2]
[319416089,1710724259333,-7470.57,0.0001863,2]
[319416090,1710724259342,-717.51,0.0001863,2]
[319416091,1710724259351,-7470.57,0.0001863,2]
[319416092,1710724259362,-717.51,0.0001863,2]
[319416093,1710724259371,-7470.57,0.0001863,2]
[319416094,1710724259380,-717.51,0.0001863,2]
[319416095,1710724259389,-7470.57,0.0001863,2]
[319416096,1710724259399,-717.51,0.0001863,2]
[319416097,1710724259408,-7470.57,0.0001863,2]
[319416098,1710724259417,-717.51,0.0001863,2]
[319416099,1710724259426,-7470.57,0.0001863,2]
[319416100,1710724259435,-7470.57,0.0001863,2]
[319416101,1710724259443,-717.51,0.0001863,2]
[319416102,1710724259453,-7470.57,0.0001863,2]
[319416103,1710724259462,-717.51,0.0001863,2]
[319416104,1710724259471,-7470.57,0.0001863,2]
[319416105,1710724259481,-717.51,0.0001863,2]
[319416106,1710724259490,-7470.57,0.0001863,2]
[319416107,1710724259499,-717.51,0.0001863,2]
[319416108,1710724259508,-7470.57,0.0001863,2]
[319416109,1710724259518,-717.51,0.0001863,2]
[319416110,1710724259527,-7470.57,0.0001863,2]
[319416111,1710724259536,-717.68077035,0.0001863,2]
[319416112,1710724259545,-7470.57,0.0001863,2]
[319416113,1710724259554,-500.0,0.0001863,2]
[319416114,1710724259563,-7470.57,0.0001863,2]
[319416115,1710724259572,-7470.57,0.0001863,2]
[319416116,1710724259581,-4932.07,0.0001863,2]
[319416117,1710724259590,-7470.57,0.0001863,2]
[319416118,1710724259599,-4932.07,0.0001863,2]
[319416119,1710724259608,-7470.57,0.0001863,2]
[319416120,1710724259619,-4932.07,0.0001863,2]
[319416121,1710724259628,-7470.57,0.0001863,2]
[319416122,1710724259637,-4932.07,0.0001863,2]
[319416123,1710724259646,-7470.57,0.0001863,2]
[319416124,1710724259655,-4932.07,0.0001863,2]
[319416125,1710724259664,-7470.57,0.0001863,2]
[319416126,1710724259673,-4932.07,0.0001863,2]
[319416127,1710724259681,-7470.57,0.0001863,2]
[319416128,1710724259690,-4932.07,0.0001863,2]
[319416129,1710724259699,-7470.57,0.0001863,2]
[319416130,1710724259708,-4932.07,0.0001863,2]
[319416131,1710724259716,-7470.80974314,0.0001863,2]
[319416132,1710724259726,-4932.07,0.0001863,2]
[319416133,1710724259734,-4932.07,0.0001863,2]
[319416134,1710724259743,-4932.07,0.0001863,2]
[319416135,1710724259752,-500.0,0.0001863,2]
[319416136,1710724259761,-4932.07,0.0001863,2]
[319416137,1710724259771,-4932.07,0.0001863,2]
[319416138,1710724259780,-4932.07,0.0001863,2]
[319416139,1710724259790,-4932.07,0.0001863,2]
[319416140,1710724259799,-14649.78,0.0001863,2]
[319416141,1710724259809,-4932.07,0.0001863,2]
[319416142,1710724259818,-4932.07,0.0001863,2]
[319416143,1710724259828,-14649.78,0.0001863,2]
[319416144,1710724259837,-4932.07,0.0001863,2]
[319416145,1710724259847,-14649.78,0.0001863,2]
[319416146,1710724259857,-500.0,0.0001863,2]
[319416147,1710724259868,-14649.78,0.0001863,2]
[319416148,1710724259878,-500.0,0.0001863,2]
[319416149,1710724259887,-14649.78,0.0001863,2]
[319416150,1710724259897,-4932.07,0.0001863,2]
[319416151,1710724259906,-500.0,0.0001863,2]
[319416152,1710724259915,-470.62774417,0.0001863,2]
[319416153,1710724259923,-14649.78,0.0001863,2]
[319416154,1710724259932,-4932.07,0.0001863,2]
[319416155,1710724259941,-500.0,0.0001863,2]
[319416156,1710724259950,-14649.78,0.0001863,2]
[319416157,1710724259959,-500.0,0.0001863,2]
[319416158,1710724259968,-14649.78,0.0001863,2]
[319416159,1710724259976,-269.23595,0.0001863,2]
[319416160,1710724259985,-4932.07,0.0001863,2]
[319416161,1710724259994,-14649.78,0.0001863,2]
[319416162,1710724260003,-4932.07,0.0001863,2]
[319416163,1710724260012,-14649.78,0.0001863,2]
[319416164,1710724260021,-4932.07,0.0001863,2]
[319416165,1710724260030,-14649.78,0.0001863,2]
[319416166,1710724260038,-4932.17150787,0.0001863,2]
[319416167,1710724260047,-14649.78,0.0001863,2]
[319416168,1710724260057,-14649.78,0.0001863,2]
[319416169,1710724260066,-14649.78,0.0001863,2]
[319416170,1710724260076,-14649.78,0.0001863,2]
[319416171,1710724260086,-14649.78,0.0001863,2]
[319416172,1710724260096,-14649.78,0.0001863,2]
[319416173,1710724260106,-14649.78,0.0001863,2]
[319416174,1710724260118,-14649.78,0.0001863,2]
[319416175,1710724260127,-14649.78,0.0001863,2]
[319416176,1710724260136,-14649.78,0.0001863,2]
[319416177,1710724260145,-500.0,0.0001863,2]
[319416178,1710724260154,-14649.78,0.0001863,2]
[319416179,1710724260164,-500.0,0.0001863,2]
[319416180,1710724260173,-14649.78,0.0001863,2]
[319416181,1710724260182,-500.0,0.0001863,2]
[319416182,1710724260194,-500.0,0.0001863,2]
[319416183,1710724260203,-14649.96336473,0.0001863,2]
[319416184,1710724260212,-199.41632991,0.0001863,2]
[319416185,1710724260221,-1588.37,0.0001863,2]
[319416186,1710724260232,-1588.37,0.0001863,2]
[319416187,1710724260242,-1588.37,0.0001863,2]
[319416188,1710724260252,-1588.37,0.0001863,2]
[319416189,1710724260261,-1588.37,0.0001863,2]
[319416190,1710724260271,-500.0,0.0001863,2]
[319416191,1710724260281,-1588.37,0.0001863,2]
[319416192,1710724260290,-500.0,0.0001863,2]
[319416193,1710724260300,-1588.37,0.0001863,2]
[319416194,1710724260310,-1588.37,0.0001863,2]
[319416195,1710724260320,-1588.37,0.0001863,2]
[319416196,1710724260329,-1588.37,0.0001863,2]
[319416197,1710724260339,-1588.37,0.0001863,2]
[319416198,1710724260348,-1588.37,0.0001863,2]
[319416199,1710724260358,-1588.37,0.0001863,2]
[319416200,1710724260369,-1588.37,0.0001863,2]
[319416201,1710724260379,-1588.37,0.0001863,2]
[319416202,1710724260388,-1588.37,0.0001863,2]
[319416203,1710724260397,-1588.37,0.0001863,2]
[319416204,1710724260406,-1588.37,0.0001863,2]
[319416205,1710724260416,-1588.37,0.0001863,2]
[319416206,1710724260425,-1588.37,0.0001863,2]
[319416207,1710724260434,-3108.71,0.0001863,2]
[319416208,1710724260443,-500.0,0.0001863,2]
[319416209,1710724260452,-1588.37,0.0001863,2]
[319416210,1710724260462,-3108.71,0.0001863,2]
[319416211,1710724260470,-1588.37,0.0001863,2]
[319416212,1710724260479,-3108.71,0.0001863,2]
[319416213,1710724260488,-500.0,0.0001863,2]
[319416214,1710724260497,-1588.37,0.0001863,2]
[319416215,1710724260506,-3108.71,0.0001863,2]
[319416216,1710724260515,-500.0,0.0001863,2]
[319416217,1710724260523,-1588.38354783,0.0001863,2]
[319416218,1710724260531,-3108.71,0.0001863,2]
[319416219,1710724260540,-500.0,0.0001863,2]
[319416220,1710724260549,-3108.71,0.0001863,2]
[319416221,1710724260559,-200.0,0.0001863,2]
[319416222,1710724260568,-3108.71,0.0001863,2]
[319416223,1710724260577,-500.0,0.0001863,2]
[319416224,1710724260586,-3108.71,0.0001863,2]
[319416225,1710724260595,-500.0,0.0001863,2]
[319416226,1710724260605,-3108.71,0.0001863,2]
[319416227,1710724260615,-500.0,0.0001863,2]
[319416228,1710724260624,-3108.71,0.0001863,2]
[319416229,1710724260633,-500.0,0.0001863,2]
[319416230,1710724260751,-3108.71,0.0001863,2]
[319416231,1710724260761,-500.0,0.0001863,2]
[319416232,1710724260770,-3108.71,0.0001863,2]
[319416233,1710724260780,-500.0,0.0001863,2]
[319416234,1710724260789,-500.0,0.0001863,2]
[319416235,1710724260798,-3108.71,0.0001863,2]
[319416236,1710724260807,-500.0,0.0001863,2]
[319416237,1710724260816,-3108.71,0.0001863,2]
[319416238,1710724260825,-500.0,0.0001863,2]
[319416239,1710724260834,-3108.71,0.0001863,2]
[319416240,1710724260843,-3108.71,0.0001863,2]
[319416241,1710724260852,-500.0,0.0001863,2]
[319416242,1710724260864,-500.0,0.0001863,2]
[319416243,1710724260873,-3108.71,0.0001863,2]
[319416244,1710724260882,-500.0,0.0001863,2]
[319416245,1710724260891,-3108.71,0.0001863,2]
[319416246,1710724260901,-545.3910595,0.0001863,2]
[319416247,1710724260910,-3108.71,0.0001863,2]
[319416248,1710724260920,-3108.71,0.0001863,2]
[319416249,1710724260929,-3108.71,0.0001863,2]
[319416250,1710724260938,-3108.71,0.0001863,2]
[319416251,1710724260946,-3108.71,0.0001863,2]
[319416252,1710724260956,-3108.91,0.0001863,2]
[319416253,1710724260965,-500.0,0.0001863,2]
[319416254,1710724260974,-313.27770867,0.0001863,2]
[319416255,1710724260983,-500.0,0.0001863,2]
[319416256,1710724260992,-500.0,0.0001863,2]
[319416257,1710724261001,-634.29477451,0.0001863,2]
[319416258,1710724261010,-500.0,0.0001863,2]
[319416259,1710724261019,-237.8434674,0.0001863,2]
[319416260,1710724261029,-1781.04,0.0001863,2]
[319416261,1710724261038,-1781.04,0.0001863,2]
[319416262,1710724261047,-1781.04,0.0001863,2]
[319416263,1710724261055,-1781.04,0.0001863,2]
[319416264,1710724261064,-1781.04,0.0001863,2]
[319416265,1710724261073,-1781.04,0.0001863,2]
[319416266,1710724261082,-1781.04,0.0001863,2]
[319416267,1710724261091,-500.0,0.0001863,2]
[319416268,1710724261100,-1781.04,0.0001863,2]
[319416269,1710724261110,-500.0,0.0001863,2]
[319416270,1710724261121,-1781.04,0.0001863,2]
[319416271,1710724261130,-1781.04,0.0001863,2]
[319416272,1710724261140,-1781.04,0.0001863,2]
[319416273,1710724261150,-1781.04,0.0001863,2]
[319416274,1710724261160,-1781.04,0.0001863,2]
[319416275,1710724261171,-1781.04,0.0001863,2]
[319416276,1710724261180,-1781.04,0.0001863,2]
[319416277,1710724261191,-500.0,0.0001863,2]
[319416278,1710724261202,-500.0,0.0001863,2]
[319416279,1710724261212,-1781.04,0.0001863,2]
[319416280,1710724261222,-500.0,0.0001863,2]
[319416281,1710724261231,-1781.04,0.0001863,2]
[319416282,1710724261241,-500.0,0.0001863,2]
[319416283,1710724261251,-500.0,0.0001863,2]
[319416284,1710724261260,-1781.04,0.0001863,2]
[319416285,1710724261270,-336.9,0.0001863,2]
[319416286,1710724261280,-500.0,0.0001863,2]
[319416287,1710724261289,-1781.04,0.0001863,2]
[319416288,1710724261299,-601.13000001,0.0001863,2]
[319416289,1710724261308,-1781.04,0.0001863,2]
[319416290,1710724261317,-1781.04,0.0001863,2]
[319416291,1710724261327,-1781.04,0.0001863,2]
[319416292,1710724261336,-1781.04,0.0001863,2]
[319416293,1710724261345,-1781.13770781,0.0001863,2]
[319416294,1710724261355,-586.712,0.0001863,2]
[319416295,1710724261365,-500.0,0.0001863,2]
[319416296,1710724261375,-500.0,0.0001863,2]
[319416297,1710724261384,-500.0,0.0001863,2]
[319416298,1710724261393,-500.0,0.0001863,2]
[319416299,1710724261402,-500.0,0.0001863,2]
[319416300,1710724261411,-500.0,0.0001863,2]
[319416301,1710724261421,-500.0,0.0001863,2]
[319416302,1710724261430,-500.0,0.0001863,2]
[319416303,1710724261440,-500.0,0.0001863,2]
[319416304,1710724261450,-500.0,0.0001863,2]
[319416305,1710724261459,-155.4,0.0001863,2]
[319416306,1710724261468,-500.0,0.0001863,2]
[319416307,1710724261477,-500.0,0.0001863,2]
[319416308,1710724261486,-500.0,0.0001863,2]
[319416309,1710724261495,-500.0,0.0001863,2]
[319416310,1710724261505,-500.0,0.0001863,2]
[319416311,1710724261513,-500.0,0.0001863,2]
[319416312,1710724261523,-500.0,0.0001863,2]
[319416313,1710724261531,-500.0,0.0001863,2]
[319416314,1710724261540,-500.0,0.0001863,2]
[319416315,1710724261549,-500.0,0.0001863,2]
[319416316,1710724261558,-500.0,0.0001863,2]
[319416317,1710724261568,-471.24538405,0.0001863,2]
[319416318,1710724261576,-500.0,0.0001863,2]
[319416319,1710724261585,-500.0,0.0001863,2]
[319416320,1710724261594,-4423.55,0.0001863,2]
[319416321,1710724261603,-500.0,0.0001863,2]
[319416322,1710724261614,-500.0,0.0001863,2]
[319416323,1710724261622,-4423.55,0.0001863,2]
[319416324,1710724261632,-500.0,0.0001863,2]
[319416325,1710724261641,-500.0,0.0001863,2]
[319416326,1710724261650,-4423.55,0.0001863,2]
[319416327,1710724261660,-500.0,0.0001863,2]
[319416328,1710724261669,-500.0,0.0001863,2]
[319416329,1710724261678,-500.0,0.0001863,2]
[319416330,1710724261687,-4423.55,0.0001863,2]
[319416331,1710724261696,-500.0,0.0001863,2]
[319416332,1710724261705,-4423.55,0.0001863,2]
[319416333,1710724261715,-500.0,0.0001863,2]
[319416334,1710724261723,-4423.55,0.0001863,2]
[319416335,1710724261732,-4423.55,0.0001863,2]
[319416336,1710724261742,-500.0,0.0001863,2]
[319416337,1710724261751,-4423.55,0.0001863,2]
[319416338,1710724261760,-500.0,0.0001863,2]
[319416339,1710724261770,-4423.55,0.0001863,2]
[319416340,1710724261779,-194.77671606,0.0001863,2]
[319416341,1710724261788,-2680.3,0.0001863,2]
[319416342,1710724261797,-4423.55,0.0001863,2]
[319416343,1710724261807,-2680.3,0.0001863,2]
[319416344,1710724261816,-4423.55,0.0001863,2]
[319416345,1710724261826,-2680.3,0.0001863,2]
[319416346,1710724261835,-4423.55,0.0001863,2]
[319416347,1710724261844,-11206.771,0.0001863,2]
[319416348,1710724261853,-804.0,0.00018657,2]
[319416349,1710724261862,-804.0,0.00018685,2]
[319416350,1710724261871,-804.0,0.00018712,2]
[319416351,1710724261881,-804.0,0.0001874,2]
[319416352,1710724261890,-809.0,0.00018767,2]
[319416353,1710724261899,-154.52759481,0.00018801,2]
[319416354,1710724261908,-2000.0,0.00018816,2]
[319416355,1710724261917,-200.0,0.00018816,2]
[319416356,1710724261926,-200.0,0.00018816,2]
[319416357,1710724261935,-296.71847077,0.000189,2]
[319416358,1710724261944,-23906.5281816,0.000189,2]
[319416359,1710724261953,-2500.0,0.000189,2]
[319416360,1710724261963,-152.39021987,0.00018946,2]
[319416361,1710724261972,-5800.0,0.00018999,2]
[319416362,1710724261982,-850.0,0.00019,3]
[319416363,1710724261991,-2000.0,0.00019004,2]
[319416364,1710724262000,-200.0,0.00019004,2]
[319416365,1710724262010,-200.0,0.00019004,2]
[319416366,1710724262018,-150.80584847,0.00019047,2]
[319416367,1710724262028,-200.0,0.00019146,2]
[319416368,1710724262037,-176.65557921,0.00019178,2]
[319416369,1710724262046,-500.0,0.00019178,2]
[319416370,1710724262054,-571.7780625,0.00019178,2]
[319416371,1710724262063,-150.0,0.00019178,2]
[319416372,1710724262072,-314.95171,0.00019178,2]
[319416373,1710724262082,-2000.0,0.00019195,2]
[319416374,1710724262091,-200.0,0.00019195,2]
[319416375,1710724262100,-200.0,0.00019195,2]
[319416376,1710724262109,-7370.90909699,0.000192,2]
[319416377,1710724262120,-152.39021987,0.00019269,2]
[319416378,1710724262129,-180.0,0.00019288,2]
[319416379,1710724262138,-1848.03328442,0.00019386,2]
[319416380,1710724262147,-200.0,0.00019386,2]
[319416381,1710724262156,-200.0,0.00019386,2]
[319416382,1710724262166,-1500.0,0.000194,2]
[319416383,1710724262175,-586.06,0.00019496,2]
[319416384,1710724262185,-697.6065012,0.000195,2]
[319416385,1710724262198,-151.16603038,0.00019554,2]
[319416386,1710724262207,-150.0,0.00019683,2]
[319416387,1710724262217,-151.30766298,0.00019754,2]
[319416388,1710724262227,-1021.84,0.00019815,2]
[319416389,1710724262292,-500.0,0.00019815,2]
[319416390,1710724262302,-500.0,0.00019815,2]
[319416391,1710724262311,-154.12575019,0.00019831,2]
[319416392,1710724262321,-154.12575019,0.00019883,2]
[319416393,1710724262331,-4526.45392259,0.000199,3]
[319416394,1710724262340,-9377.65607027,0.000199,2]
[319416395,1710724262351,-1500.0,0.000199,2]
[319416396,1710724262360,-152.39021987,0.00019936,2]
[319416397,1710724262372,-405.65571563,0.0001998,2]
[319416398,1710724262381,-155.0,0.0002,2]
[319416399,1710724262390,-14328.66663053,0.0002,2]
[319416400,1710724262399,-1848.43047613,0.0002,2]
[319416401,1710724262408,-2613.10402099,0.0002,2]
[319416402,1710724262418,-286.63395729,0.0002,2]
[319416403,1710724262427,-157.38123546,0.0002,2]
[319416404,1710724262436,-3039.91368398,0.0002,2]
[319416405,1710724262446,-155.0,0.0002,2]
[319416406,1710724262455,-2500.0,0.0002,2]
[319416407,1710724262464,-18774.23774994,0.0002,2]
[319416408,1710724262473,-33417.76203518,0.0002,2]
[319416409,1710724262483,-155.0,0.0002,2]
[319416410,1710724262492,-1246.7636923,0.0002,2]
[319416411,1710724262501,-1754.23693487,0.0002,2]
[319416412,1710724262510,-40954.0670459,0.0002,4]
[319416413,1710724262519,-233.63008339,0.0002,2]
[319416414,1710724262527,-400.0,0.0002,2]
[319416415,1710724262536,-150.0,0.0002,2]
[319416416,1710724262546,-314.95171,0.0002,2]
[319416417,1710724262555,-594.18,0.00020145,2]
[319416418,1710724262565,-150.0,0.00020187,2]
[319416419,1710724262573,-154.06087022,0.00020391,2]
[319416420,1710724262583,-1500.0,0.000204,2]
[319416421,1710724262591,-3000.0,0.00020451,2]
[319416422,1710724262601,-830.27886738,0.00020494,2]
[319416423,1710724262610,-830.2788673,0.00020494,2]
[319416424,1710724262620,-150.0,0.00020692,2]
[319416425,1710724262629,-154.12575019,0.00020813,2]
[319416426,1710724262638,-314.95171,0.00020822,2]
[319416427,1710724262647,-1500.0,0.000209,2]
[319416428,1710724262657,-154.12575019,0.00020926,2]
[319416429,1710724262666,-2000.0,0.00021,2]
[319416430,1710724262675,-900.0,0.00021,3]
[319416431,1710724262684,-172999.999999,0.00021,2]
[319416432,1710724262694,-154.12575019,0.00021037,2]
[319416433,1710724262703,-1021.84,0.00021095,2]
[319416434,1710724262712,-500.0,0.00021095,2]
[319416435,1710724262721,-386.40696761,0.00021095,2]
[319416436,1710724262731,-39692.09,0.00021096,2]
[319416437,1710724262741,-150.0,0.00021197,2]
[319416438,1710724262750,-154.11102108,0.00021249,2]
[319416439,1710724262759,-830.2788673,0.00021257,2]
[319416440,1710724262768,-154.12575019,0.00021281,2]
[319416441,1710724262778,-1500.0,0.000214,2]
[319416442,1710724262787,-154.12575019,0.00021444,2]
[319416443,1710724262796,-40884.0,0.00021494,120]
[319416444,1710724262806,-10179.57217526,0.00021494,3]
[319416445,1710724262814,-18230.74032234,0.00021494,120]
[319416446,1710724262822,-2500.0,0.00021494,30]
[319416447,1710724262831,-2988.0,0.00021494,10]
[319416448,1710724262840,-8007.47466065,0.00021494,2]
[319416449,1710724262849,-835098.24683371,0.00021494,3]
[319416450,1710724262858,-18873.48101209,0.00021494,3]
[319416451,1710724262868,-3820.09338786,0.00021494,3]
[319416452,1710724262878,-314.95171,0.00021644,2]
[319416453,1710724262887,-150.0,0.00021702,2]
[319416454,1710724262897,-586.06,0.0002176,2]
[319416455,1710724262906,-732.0,0.000219,2]
[319416456,1710724262915,-10000.0,0.000219,2]
[319416457,1710724262924,-500.0,0.000219,2]
[319416458,1710724262933,-1000.0,0.000219,2]
[319416459,1710724262943,-312.0,0.000219,2]
[319416460,1710724262952,-200.0,0.000219,2]
[319416461,1710724262962,-10000.0,0.000219,2]
[319416462,1710724262971,-11900.0,0.00021918,2]
[319416463,1710724262980,-250.0,0.00021918,2]
[319416464,1710724262989,-2222.5,0.00021918,10]
[319416465,1710724262998,-155.0,0.00021918,2]
[319416466,1710724263007,-155.0,0.00022,2]
[319416467,1710724263016,-1496.60516037,0.00022,2]
[319416468,1710724263025,-155.0,0.00022,2]
[319416469,1710724263034,-1010.2,0.00022,2]
[319416470,1710724263043,-152.39021987,0.00022042,2]
[319416471,1710724263052,-150.0,0.00022206,2]
[319416472,1710724263061,-314.95171,0.00022466,2]
[319416473,1710724263070,-154.12575019,0.00022512,2]
[319416474,1710724263078,-4762.0,0.00022528,2]
[319416475,1710724263195,-5668.0,0.00022528,2]
[319416476,1710724263208,-42878.0,0.00022528,2]
[319416477,1710724263218,-2427.0,0.00022528,2]
[319416478,1710724263228,-1044.0,0.00022528,2]
[319416479,1710724263237,-150.0,0.00022711,2]
[319416480,1710724263247,-151.0,0.00022951,2]
[319416481,1710724263256,-442.06865868,0.00023,16]
[319416482,1710724263265,-587.45138479,0.00023,2]
[319416483,1710724263276,-950.0,0.00023,3]
[319416484,1710724263285,-1021.84,0.00023022,2]
[319416485,1710724263297,-206.0,0.00023023,2]
[319416486,1710724263307,-188.0,0.00023023,2]
[319416487,1710724263317,-159.0,0.00023023,2]
[319416488,1710724263327,-240.497,0.00023023,2]
[319416489,1710724263336,-159.567,0.00023023,2]
[319416490,1710724263347,-250.0,0.00023023,2]
[319416491,1710724263356,-250.0,0.00023023,2]
[319416492,1710724263370,-165.061,0.00023023,2]
[319416493,1710724263379,-150.361,0.00023023,2]
[319416494,1710724263389,-150.0,0.00023023,2]
[319416495,1710724263398,-152.121,0.00023023,2]
[319416496,1710724263408,-1378.0,0.00023023,2]
[319416497,1710724263417,-959.0,0.00023023,2]
[319416498,1710724263427,-2560.0,0.00023023,2]
[319416499,1710724263437,-536.0,0.00023023,2]
[319416500,1710724263446,-457.0,0.00023023,2]
[319416501,1710724263456,-1226.0,0.00023023,2]
[319416502,1710724263465,-1264.0,0.00023023,2]
[319416503,1710724263475,-278.0,0.00023023,2]
[319416504,1710724263484,-603.0,0.00023023,2]
[319416505,1710724263494,-1250.0,0.00023023,2]
[319416506,1710724263504,-432.0,0.00023023,2]
[319416507,1710724263513,-800.0,0.00023023,2]
[319416508,1710724263523,-3000.0,0.00023023,2]
[319416509,1710724263533,-1136.0,0.00023023,2]
[319416510,1710724263542,-357.0,0.00023023,2]
[319416511,1710724263551,-2419.0,0.00023023,2]
[319416512,1710724263560,-1458.0,0.00023023,2]
[319416513,1710724263568,-213.0,0.00023023,2]
[319416514,1710724263578,-1623.0,0.00023023,2]
[319416515,1710724263587,-154.06087022,0.00023027,2]
[319416516,1710724263596,-500.0,0.00023118,2]
[319416517,1710724263606,-962.0,0.00023119,2]
[319416518,1710724263618,-4502.0,0.00023119,2]